bitfinex/quotes_ETHUSD_20250223
["timestamp","ask_amount","ask_price","bid_price","bid_amount"]
[1740280789457,3.62555,2758.2,2757.6,4.34741521]
[1740280791750,3.62555,2758.2,2757.6,7.97368521]
[1740280791918,3.0,2758.1,2757.6,4.34735521]
[1740280793685,3.0,2758.1,2757.6,5.7910541]
[1740280793820,3.0,2758.1,2757.7,3.6262]
[1740280797058,6.62577,2758.1,2757.6,5.7911141]
[1740280798150,6.62577,2758.1,2757.7,3.6262]
[1740280799279,6.62577,2758.1,2757.6,2.1647841]
[1740280799474,6.62577,2758.1,2757.6,5.7911241]
[1740280800074,6.62577,2758.1,2757.6,2.1647841]
[1740280800271,6.62577,2758.1,2757.6,0.72108521]
[1740280800472,0.8304,2758.1,2757.6,0.72108521]
[1740280800672,5.26945873,2757.9,2757.6,0.72108521]
[1740280800842,3.62619,2757.8,2757.6,0.72108521]
[1740280801044,5.26945873,2757.9,2757.6,0.72108521]
[1740280801356,3.626,2757.9,2757.6,0.72108521]
[1740280801564,3.626,2757.9,2757.5,6.456]
[1740280801565,3.62595,2757.9,2757.5,6.456]
[1740280805282,3.62595,2757.9,2757.5,1.066]
[1740280806082,3.62595,2757.9,2757.6,0.11346732]
[1740280807685,3.62595,2757.9,2757.5,1.066]
[1740280808475,7.25199,2757.9,2757.5,1.066]
[1740280808699,3.62595,2757.9,2757.5,1.066]
[1740280809385,3.62595,2757.9,2757.5,1.50324428]
[1740280810686,3.62595,2757.9,2757.6,0.11346673]
[1740280811988,3.62595,2757.9,2757.7,0.11346673]
[1740280812191,2.47385873,2758.1,2757.7,0.11346673]
[1740280812392,3.62581,2758.0,2757.7,0.11346673]
[1740280812690,3.62597,2757.9,2757.7,0.11346673]
[1740280813048,4.64345873,2758.1,2757.7,0.11346673]
[1740280813249,3.62581,2758.0,2757.7,0.11346673]
[1740280813452,3.62596,2757.9,2757.7,0.11346673]
[1740280813699,3.62596,2757.9,2757.5,1.066]
[1740280813985,3.62596,2757.9,2757.5,1.63435548]
[1740280814398,3.62581,2758.0,2757.5,1.63435548]
[1740280814581,7.25171,2758.0,2757.6,0.11346528]
[1740280816003,7.25171,2758.0,2757.7,0.11346528]
[1740280816977,3.62581,2758.0,2757.7,0.11346528]
[1740280817178,7.25174,2758.0,2757.7,0.11346528]
[1740280817495,7.25174,2758.0,2757.5,1.066]
[1740280817853,3.62595,2757.9,2757.5,1.066]
[1740280818054,3.62581,2758.0,2757.5,1.066]
[1740280818268,3.62581,2758.0,2757.5,4.69246]
[1740280818463,5.26941873,2757.9,2757.6,0.11346819]
[1740280818665,3.62611,2757.8,2757.6,0.11346819]
[1740280819180,3.62608,2757.8,2757.6,0.11346819]
[1740280819908,5.26966873,2757.7,2757.6,0.11346819]
[1740280820124,10.46312746,2757.7,2757.6,0.11346819]
[1740280820274,9.59506873,2757.7,2757.6,0.11346819]
[1740280820676,3.62682,2757.3,2756.8,6.10682739]
[1740280820905,5.27027873,2757.3,2756.8,0.71682739]
[1740280821105,8.89710873,2757.3,2756.8,0.71682739]
[1740280821575,3.62687,2757.2,2756.7,4.69544]
[1740280821775,3.62687,2757.2,2756.7,6.29573224]
[1740280821976,3.62687,2757.2,2756.8,0.11349454]
[1740280823212,3.62687,2757.2,2756.7,6.29573224]
[1740280823213,3.62687,2757.2,2756.9,0.11349454]
[1740280824822,3.62687,2757.2,2756.7,6.29573224]
[1740280825003,0.7754,2757.1,2756.7,5.49173224]
[1740280825201,0.7754,2757.1,2756.8,0.6204586]
[1740280825398,3.62687,2757.2,2756.8,0.6204586]
[1740280828317,3.0,2757.8,2757.0,0.804]
[1740280828522,3.0,2757.8,2757.4,3.6266]
[1740280828755,2.41885873,2757.9,2757.4,3.6266]
[1740280828929,5.41885873,2757.9,2757.4,3.6266]
[1740280829136,5.41885873,2757.9,2757.3,3.62668]
[1740280829332,5.41885873,2757.9,2757.0,6.194]
[1740280829632,6.62608,2757.8,2757.2,3.62679]
[1740280829828,6.62608,2757.8,2757.3,3.62668]
[1740280830030,6.62608,2757.8,2757.2,3.62679]
[1740280830231,1.64345873,2757.7,2757.2,3.62679]
[1740280830430,1.64345873,2757.7,2757.2,7.25357]
[1740280830639,1.64345873,2757.7,2757.2,5.04596144]
[1740280831030,1.64345873,2757.7,2757.3,0.11349492]
[1740280831201,1.64345873,2757.7,2757.3,3.74021492]
[1740280831637,2.41885873,2757.9,2757.3,0.11349492]
[1740280831852,3.0,2757.9,2757.4,0.804]
[1740280832167,5.24,2758.3,2757.4,0.804]
[1740280832168,0.7754,2758.6,2757.9,3.62591]
[1740280832333,1.64345873,2758.4,2758.0,3.62578]
[1740280832658,0.06968702,2758.3,2757.9,4.42991]
[1740280833360,0.06968702,2758.3,2757.9,0.804]
[1740280834230,3.69511702,2758.3,2757.9,0.804]
[1740280834431,1.64345873,2758.2,2757.9,0.804]
[1740280834733,0.06957724,2758.1,2757.7,0.8122]
[1740280835083,0.06957724,2758.1,2757.8,0.443847]
[1740280835272,0.06957724,2758.1,2757.7,4.4384]
[1740280835622,0.06957724,2758.1,2757.7,4.43832]
[1740280836941,3.69525724,2758.1,2757.7,4.43832]
[1740280837472,3.69525724,2758.1,2758.0,0.73418281]
[1740280837768,0.06957724,2758.1,2758.0,0.73418281]
[1740280840306,5.26880873,2758.4,2758.0,0.73418281]
[1740280840507,0.06957724,2758.1,2758.0,0.73418281]
[1740280840711,5.26880873,2758.4,2758.0,1.17019109]
[1740280840865,0.06957724,2758.1,2758.0,0.73418281]
[1740280841065,3.62543,2758.3,2758.0,0.73418281]
[1740280841309,0.06963214,2758.2,2758.0,0.73418281]
[1740280841482,3.62543,2758.3,2758.0,0.73418281]
[1740280841680,0.06957724,2758.1,2758.0,0.73418281]
[1740280841876,3.62556,2758.2,2758.0,0.73418281]
[1740280842083,0.06957724,2758.1,2758.0,0.73418281]
[1740280844011,3.62546,2758.3,2758.0,0.73418281]
[1740280844218,0.07001764,2758.1,2758.0,0.73418281]
[1740280844369,3.62546,2758.3,2758.0,0.73418281]
[1740280844565,0.07001764,2758.1,2758.0,0.73418281]
[1740280844764,3.62546,2758.3,2758.0,0.73418281]
[1740280845005,0.07001764,2758.1,2758.0,0.73418281]
[1740280845166,3.62546,2758.3,2758.0,0.73418281]
[1740280845366,0.07001764,2758.1,2758.0,0.73418281]
[1740280845598,3.62546,2758.3,2758.0,0.73418281]
[1740280845766,0.07001764,2758.1,2758.0,0.73418281]
[1740280845963,3.62546,2758.3,2758.0,0.73418281]
[1740280846196,0.07001764,2758.1,2758.0,0.73418281]
[1740280846396,3.62546,2758.3,2758.0,0.73418281]
[1740280846915,1.64345873,2758.8,2758.3,3.62535]
[1740280847081,5.26797873,2759.0,2758.5,3.62513]
[1740280847290,3.0,2758.9,2758.5,3.62513]
[1740280847626,6.62467,2758.9,2758.3,3.88731]
[1740280847912,1.64345873,2759.2,2758.4,0.8295]
[1740280848215,5.26778873,2759.2,2758.7,3.62482]
[1740280848585,3.62433,2759.2,2758.7,3.62482]
[1740280848801,3.62433,2759.2,2758.6,3.62493]
[1740280849001,0.06822389,2759.1,2758.6,3.62493]
[1740280849323,0.06822389,2759.1,2758.6,4.432893]
[1740280849497,0.06822389,2759.1,2758.8,3.62467]
[1740280849818,4.41211,2759.4,2758.9,0.8295]
[1740280850113,3.62414,2759.3,2758.9,0.8295]
[1740280850421,3.69247359,2759.3,2758.9,0.8295]
[1740280850776,3.62424,2759.2,2758.9,0.8295]
[1740280850976,3.69251874,2759.2,2758.9,0.8295]
[1740280852374,3.69251874,2759.2,2759.1,0.73742788]
[1740280852375,0.06827874,2759.2,2759.1,0.73742788]
[1740280852597,0.06827874,2759.2,2758.7,0.263]
[1740280852598,3.62475,2758.9,2758.7,0.263]
[1740280852901,0.07210686,2758.8,2758.7,0.263]
[1740280853073,0.07210686,2758.8,2758.5,5.39]
[1740280853074,0.07210686,2758.8,2758.5,5.653]
[1740280853475,3.62502,2758.6,2758.5,5.653]
[1740280853684,3.69701712,2758.6,2758.5,5.653]
[1740280853975,0.07199712,2758.6,2758.5,5.653]
[1740280854917,0.07199712,2758.6,2758.5,5.39]
[1740280855273,0.8108,2758.5,2758.0,4.3273661]
[1740280855479,3.62549,2758.3,2758.0,4.3273661]
[1740280855702,0.07154116,2758.2,2758.0,4.3273661]
[1740280856018,3.62549,2758.3,2758.0,4.3273661]
[1740280856216,0.07148627,2758.1,2758.0,4.3273661]
[1740280856391,3.62549,2758.3,2758.0,4.3273661]
[1740280856591,0.07148627,2758.1,2758.0,4.3273661]
[1740280856794,3.62549,2758.3,2758.0,4.3273661]
[1740280856994,0.07148627,2758.1,2758.0,4.3273661]
[1740280857209,3.62549,2758.3,2758.0,4.3273661]
[1740280857413,0.07148627,2758.1,2758.0,4.3273661]
[1740280857721,0.07148627,2758.1,2758.0,5.86963931]
[1740280857930,3.62549,2758.3,2758.0,5.86963931]
[1740280858112,0.07148627,2758.1,2758.0,5.86963931]
[1740280858426,3.62549,2758.3,2758.0,5.86963931]
[1740280858602,0.07148627,2758.1,2758.0,5.86963931]
[1740280858899,3.62549,2758.3,2758.0,5.86963931]
[1740280859082,0.07148627,2758.1,2758.0,5.86963931]
[1740280859282,3.62549,2758.3,2758.0,5.86963931]
[1740280859485,0.07154116,2758.2,2758.0,5.86963931]
[1740280859712,3.62549,2758.3,2758.0,5.86963931]
[1740280860030,0.07148627,2758.1,2758.0,4.3273661]
[1740280860211,3.62561,2758.2,2758.0,4.3273661]
[1740280860401,0.07148627,2758.1,2758.0,4.3273661]
[1740280860805,3.69716627,2758.1,2758.0,4.3273661]
[1740280861018,7.90361304,2758.1,2758.0,4.3273661]
[1740280861328,10.90361304,2758.1,2758.0,4.3273661]
[1740280862235,10.90361304,2758.1,2757.2,6.1961]
[1740280862236,4.3702,2758.0,2757.2,6.1961]
[1740280862529,3.62664,2757.4,2757.2,5.39]
[1740280862732,3.62664,2757.4,2757.0,1.52164882]
[1740280862914,3.62686,2757.2,2757.1,1.05388888]
[1740280863435,3.6970701,2757.2,2757.1,1.05388888]
[1740280863886,3.62699,2757.1,2757.0,0.264]
[1740280864081,3.62699,2757.1,2756.9,5.39]
[1740280864082,3.62713,2757.0,2756.9,5.654]
[1740280864287,0.07010023,2757.0,2756.9,5.654]
[1740280866023,3.62688,2757.2,2756.9,5.654]
[1740280866222,0.07000819,2757.0,2756.9,5.654]
[1740280866522,0.07000819,2757.0,2756.9,6.65393101]
[1740280866696,3.62688,2757.2,2756.9,6.65393101]
[1740280866894,0.07006313,2757.1,2756.9,6.65393101]
[1740280867597,0.07006313,2757.1,2756.9,1.26393101]
[1740280868600,3.62674,2757.3,2756.9,1.26393101]
[1740280868801,0.07000819,2757.0,2756.9,1.26393101]
[1740280869099,3.62662,2757.4,2756.9,5.69729101]
[1740280869313,0.07000819,2757.0,2756.9,5.69729101]
[1740280869512,3.62662,2757.4,2756.9,5.69729101]
[1740280869710,0.8202,2757.7,2757.0,0.9324681]
[1740280869917,0.8202,2757.7,2756.9,2.07003101]
[1740280869918,0.8202,2757.7,2757.3,3.62666]
[1740280870623,0.06954898,2757.6,2757.3,3.62666]
[1740280870926,0.06954898,2757.6,2757.2,3.62683]
[1740280871812,0.06954898,2757.6,2757.3,3.62666]
[1740280872016,0.06954898,2757.6,2757.3,3.989326]
[1740280872422,3.62614,2757.8,2757.3,3.989326]
[1740280872608,0.06949406,2757.5,2757.3,3.989326]
[1740280872822,3.62614,2757.8,2757.3,3.989326]
[1740280873023,0.06943914,2757.4,2757.3,3.989326]
[1740280873451,7.25232,2757.8,2757.3,0.362666]
[1740280873651,0.06943914,2757.4,2757.2,7.25363]
[1740280873955,0.06938422,2757.3,2757.2,3.62677]
[1740280874125,3.62614,2757.8,2757.2,7.25356]
[1740280874327,0.06938422,2757.3,2757.2,3.62677]
[1740280874715,7.44622,2757.9,2757.3,3.62665]
[1740280875518,7.44622,2757.9,2757.4,3.62652]
[1740280875849,7.44622,2757.9,2757.3,3.62665]
[1740280876250,7.44622,2757.9,2757.3,4.071265]
[1740280876474,7.44622,2757.9,2757.3,7.697915]
[1740280877051,7.44622,2757.9,2757.3,4.071265]
[1740280877348,7.44622,2757.9,2757.4,3.62659]
[1740280877950,0.0696588,2757.8,2757.4,3.62659]
[1740280878328,3.6957388,2757.8,2757.3,4.071345]
[1740280878512,3.6957388,2757.8,2757.4,3.62657]
[1740280878513,0.0696588,2757.8,2757.4,3.62657]
[1740280878943,3.6957488,2757.8,2757.4,3.62657]
[1740280879417,0.0696588,2757.8,2757.4,4.4783235]
[1740280884826,0.0696588,2757.8,2757.5,3.62642]
[1740280885160,0.0696588,2757.8,2757.4,4.4782735]
[1740280886830,3.6957388,2757.8,2757.4,0.8517535]
[1740280890571,3.6957388,2757.8,2757.5,0.11347186]
[1740280891777,0.0696588,2757.8,2757.4,4.4782535]
[1740280891947,0.0696588,2757.8,2757.7,3.62621]
[1740280892142,0.8227,2758.1,2757.7,3.62621]
[1740280892360,4.44811,2758.4,2757.8,4.41705]
[1740280892766,4.44811,2758.4,2757.9,3.62586]
[1740280894975,4.44809,2758.4,2757.9,3.62586]
[1740280895186,4.44809,2758.4,2757.8,0.7911]
[1740280895387,3.62545,2758.3,2757.9,0.54129998]
[1740280895589,3.69546862,2758.3,2757.9,0.54129998]
[1740280898190,0.07001862,2758.3,2757.9,4.16719998]
[1740280900696,3.69543862,2758.3,2757.9,4.16719998]
[1740280901594,0.07001862,2758.3,2757.9,4.16717998]
[1740280901891,0.07001862,2758.3,2758.0,4.121538]
[1740280902452,0.07001862,2758.3,2758.1,3.62565]
[1740280902652,3.69544862,2758.3,2758.0,0.495828]
[1740280902855,3.69544862,2758.3,2757.9,3.62588]
[1740280903056,0.07001862,2758.3,2757.9,3.62588]
[1740280903259,0.07001862,2758.3,2757.9,9.01588]
[1740280906545,3.69543862,2758.3,2757.9,9.01588]
[1740280906703,3.62557,2758.2,2757.9,5.39]
[1740280907004,0.06700809,2758.1,2757.9,5.39]
[1740280907589,3.62581,2758.0,2757.9,5.39]
[1740280907789,4.51917207,2758.0,2757.9,5.39]
[1740280909413,3.62617,2757.8,2757.3,2.02874578]
[1740280909710,3.62616,2757.8,2757.3,2.02874578]
[1740280909891,3.69323939,2757.7,2757.4,0.11346666]
[1740280910204,0.06695939,2757.7,2757.4,0.11346666]
[1740280910431,3.62598,2757.9,2757.4,3.74005666]
[1740280910735,3.62598,2757.9,2757.4,4.6796219]
[1740280910932,0.06701429,2757.8,2757.4,4.6795519]
[1740280911102,0.06701429,2757.8,2757.4,4.56607524]
[1740280911303,3.62595,2757.9,2757.4,4.56607524]
[1740280911505,0.06695939,2757.7,2757.6,3.62634]
[1740280911722,0.06701429,2757.8,2757.6,0.81923752]
[1740280912031,4.45177,2758.2,2757.6,3.62633]
[1740280912236,0.06679511,2757.7,2757.6,3.62633]
[1740280912439,4.45177,2758.2,2757.6,3.62633]
[1740280912609,0.06684111,2757.7,2757.6,3.62633]
[1740280912935,4.45177,2758.2,2757.6,3.62633]
[1740280913136,4.45177,2758.2,2757.7,4.351459]
[1740280913302,0.8261,2758.2,2757.7,4.351459]
[1740280913502,0.8261,2758.2,2757.7,7.977589]
[1740280913705,3.0,2758.3,2757.8,0.8171]
[1740280913906,3.6258,2758.1,2757.8,0.8171]
[1740280914334,0.06711092,2758.0,2757.8,0.8171]
[1740280914636,0.06711092,2758.0,2757.8,1.33235474]
[1740280915087,3.62609,2757.8,2757.5,0.8171]
[1740280915395,0.06742611,2757.7,2757.5,0.8171]
[1740280915613,3.62609,2757.8,2757.5,1.52580172]
[1740280915827,0.06742611,2757.7,2757.6,0.11346345]
[1740280916027,3.62609,2757.8,2757.6,0.11346345]
[1740280916331,0.06742611,2757.7,2757.6,0.11346345]
[1740280916548,3.69363611,2757.7,2757.6,0.11346345]
[1740280916718,3.62621,2757.7,2757.6,0.11346345]
[1740280916927,3.69355725,2757.7,2757.6,0.11346345]
[1740280917311,3.69355725,2757.7,2757.4,5.39]
[1740280918514,0.06734725,2757.7,2757.4,5.39]
[1740280919046,0.06729235,2757.6,2757.4,5.39]
[1740280919245,7.25227,2757.8,2757.4,6.41861491]
[1740280919416,0.06734725,2757.7,2757.4,6.41861491]
[1740280919619,3.62609,2757.8,2757.4,6.41861491]
[1740280919847,0.06734725,2757.7,2757.4,6.41861491]
[1740280920049,3.62609,2757.8,2757.4,6.41861491]
[1740280920351,0.06729235,2757.6,2757.4,6.41861491]
[1740280920526,3.6259,2758.0,2757.4,6.41861491]
[1740280920527,3.62581,2758.0,2757.6,0.7821]
[1740280920725,0.7667,2758.1,2757.6,0.7821]
[1740280920925,0.7667,2758.1,2757.6,4.40836]
[1740280921455,3.62563,2758.2,2757.7,3.62615]
[1740280921860,7.39212,2758.3,2757.7,4.50648014]
[1740280922070,3.62569,2758.1,2757.7,0.88033014]
[1740280922217,3.62569,2758.1,2757.7,0.99378955]
[1740280922416,0.06736733,2758.0,2757.7,0.99378955]
[1740280922826,3.69318733,2758.0,2757.7,0.99378955]
[1740280923160,0.06736733,2758.0,2757.9,0.71637887]
[1740280923617,3.69317733,2758.0,2757.9,0.71637887]
[1740280923817,4.45987733,2758.0,2757.9,0.71637887]
[1740280924013,3.62634,2757.6,2757.5,0.262]
[1740280924218,3.69361264,2757.6,2757.5,0.262]
[1740280925316,3.69361264,2757.6,2757.4,5.39]
[1740280925317,3.62647,2757.5,2757.4,5.39]
[1740280925513,3.69361264,2757.6,2757.1,1.51805666]
[1740280925743,0.06721774,2757.5,2757.2,0.262]
[1740280926318,0.06721774,2757.5,2757.3,0.1134765]
[1740280927435,0.06721774,2757.5,2757.2,0.262]
[1740280928326,3.62634,2757.6,2757.2,0.262]
[1740280928965,0.06721774,2757.5,2757.2,0.262]
[1740280929260,0.06721774,2757.5,2757.2,1.48332613]
[1740280930248,3.62661,2757.4,2757.3,0.11347827]
[1740280930417,0.06716283,2757.4,2757.3,0.11347827]
[1740280930621,4.39312,2757.6,2757.3,0.11347827]
[1740280930821,0.06721774,2757.5,2757.3,0.11347827]
[1740280931722,0.06721774,2757.5,2757.2,5.11011613]
[1740280932037,3.62623,2757.7,2757.3,1.02551528]
[1740280932358,0.06727264,2757.6,2757.2,5.11011613]
[1740280933462,4.39286,2757.8,2757.2,5.11011613]
[1740280933463,0.06721774,2757.5,2757.4,3.62653]
[1740280933956,0.7667,2757.8,2757.4,3.62653]
[1740280934162,0.06721774,2757.5,2757.4,0.11347127]
[1740280934362,4.39279,2757.8,2757.4,0.11347127]
[1740280934569,0.06710602,2757.5,2757.4,0.11347127]
[1740280934728,0.7667,2757.8,2757.4,4.26239401]
[1740280934928,0.06710602,2757.5,2757.4,4.26239401]
[1740280935129,6.62596,2757.9,2757.4,4.26239401]
[1740280935327,0.06710602,2757.5,2757.4,4.26239401]
[1740280935558,6.62596,2757.9,2757.4,4.26239401]
[1740280935754,0.06710602,2757.5,2757.4,3.62657]
[1740280935965,3.0,2757.9,2757.5,3.62639]
[1740280936451,0.55,2758.3,2757.6,0.7979]
[1740280936763,0.7854,2758.2,2757.8,3.62603]
[1740280937540,0.06743536,2758.1,2757.8,3.62603]
[1740280938355,0.06743536,2758.1,2757.8,4.14042794]
[1740280939069,3.69312536,2758.1,2757.7,0.72004937]
[1740280939231,7.31890536,2758.1,2757.7,0.72004937]
[1740280939431,3.69312536,2758.1,2757.6,0.7979]
[1740280939632,3.62583,2758.0,2757.6,0.7979]
[1740280939870,0.06740403,2757.9,2757.6,0.7979]
[1740280940166,0.06740403,2757.9,2757.6,1.54075713]
[1740280940676,4.42855,2757.8,2757.3,9.01672]
[1740280940963,4.42855,2757.8,2757.5,0.262]
[1740280941367,0.06729425,2757.7,2757.5,0.262]
[1740280941868,0.06723935,2757.6,2757.5,0.262]
[1740280942073,4.42855,2757.8,2757.5,0.262]
[1740280942771,4.42855,2757.8,2757.5,0.98205807]
[1740280943072,0.06729425,2757.7,2757.5,0.98205807]
[1740280943472,4.42855,2757.8,2757.5,0.98205807]
[1740280943982,0.06729425,2757.7,2757.5,0.98205807]
[1740280944138,0.06729425,2757.7,2757.6,4.42474]
[1740280944341,0.8024,2758.3,2757.8,3.62605]
[1740280944755,4.42788,2758.3,2757.8,3.62605]
[1740280945072,0.06520466,2758.2,2757.8,3.62605]
[1740280945972,7.42788,2758.3,2757.8,3.62605]
[1740280946171,0.06514979,2758.1,2757.8,3.62605]
[1740280946476,0.06509491,2758.0,2757.8,3.62605]
[1740280946881,7.42788,2758.3,2757.8,3.62605]
[1740280947039,0.06504003,2757.9,2757.8,3.62605]
[1740280947239,7.42788,2758.3,2757.8,4.970125]
[1740280947474,0.06520466,2758.2,2757.8,3.62605]
[1740280947671,3.69075466,2758.2,2757.6,9.8147]
[1740280947904,3.62555,2758.2,2757.7,3.62612]
[1740280948205,0.06529093,2758.1,2757.7,3.62612]
[1740280948798,0.06529093,2758.1,2757.8,0.11345355]
[1740280948998,0.06529093,2758.1,2757.8,0.79683242]
[1740280950616,0.06529093,2758.1,2757.9,0.11345355]
[1740280950963,7.42783,2758.3,2757.9,0.11345355]
[1740280951506,0.06547722,2758.2,2757.8,4.30944887]
[1740280951907,7.42783,2758.3,2757.8,4.30944887]
[1740280953869,7.42783,2758.3,2757.9,0.73436728]
[1740280954584,0.06547722,2758.2,2757.9,0.73436728]
[1740280954979,7.42783,2758.3,2757.9,0.73436728]
[1740280955486,0.06547722,2758.2,2757.9,0.73436728]
[1740280955897,7.42783,2758.3,2757.9,0.73436728]
[1740280956577,0.06547722,2758.2,2757.9,0.73436728]
[1740280956972,7.42783,2758.3,2757.9,0.73436728]
[1740280957511,0.06547722,2758.2,2757.9,0.73436728]
[1740280957812,7.42783,2758.3,2757.9,0.73436728]
[1740280958111,0.06547722,2758.2,2757.9,0.73436728]
[1740280958408,7.42783,2758.3,2757.9,0.73436728]
[1740280958615,4.42783,2758.3,2757.9,0.73436728]
[1740280958908,0.06546154,2758.2,2757.9,0.73436728]
[1740280959318,4.42783,2758.3,2757.9,0.73436728]
[1740280959482,0.06540667,2758.1,2757.9,0.73436728]
[1740280959682,4.42783,2758.3,2757.9,0.73436728]
[1740280960322,0.06546937,2758.2,2757.9,0.73436728]
[1740280960616,4.42783,2758.3,2757.9,0.73436728]
[1740280960916,0.06546937,2758.2,2757.9,0.73436728]
[1740280961303,4.42783,2758.3,2757.9,0.73436728]
[1740280961503,0.06541451,2758.1,2757.9,0.73436728]
[1740280961707,4.42783,2758.3,2757.9,1.17041701]
[1740280961906,0.06535963,2758.0,2757.9,0.73436728]
[1740280962107,4.42783,2758.3,2757.9,0.73436728]
[1740280962318,0.06535963,2758.0,2757.9,0.73436728]
[1740280962521,4.42783,2758.3,2757.9,0.73436728]
[1740280962677,0.06535963,2758.0,2757.9,0.73436728]
[1740280962879,3.62558,2758.2,2757.9,1.17041701]
[1740280963115,0.06541451,2758.1,2757.9,0.73436728]
[1740280964095,3.69116451,2758.1,2757.9,0.73436728]
[1740280964303,5.26855119,2758.0,2757.9,0.73436728]
[1740280964533,6.10045119,2758.0,2757.9,0.73436728]
[1740280964685,3.62621,2757.7,2757.6,5.39]
[1740280964881,3.62621,2757.7,2757.3,5.91872717]
[1740280965218,0.06529784,2757.6,2757.3,6.58921989]
[1740280965382,0.06529784,2757.6,2757.3,7.31074062]
[1740280965585,5.26883119,2757.8,2757.3,7.31074062]
[1740280965995,0.06535273,2757.7,2757.3,7.31074062]
[1740280966324,3.62609,2757.8,2757.3,7.31074062]
[1740280966673,0.0651467,2757.6,2757.4,0.11346985]
[1740280966817,0.06520159,2757.7,2757.4,0.11346985]
[1740280966984,0.06509181,2757.5,2757.4,0.11346985]
[1740280967296,0.06504581,2757.5,2757.4,0.11346985]
[1740280967699,3.62621,2757.7,2757.4,0.11346985]
[1740280968024,3.6261,2757.8,2757.4,0.11346985]
[1740280968220,3.6261,2757.8,2757.4,1.27051418]
[1740280968386,0.06515559,2757.7,2757.4,1.27051418]
[1740280968886,0.0651007,2757.6,2757.4,1.27051418]
[1740280969135,3.62624,2757.7,2757.5,0.11346985]
[1740280970446,3.62624,2757.7,2757.3,6.32249272]
[1740280971750,3.62624,2757.7,2757.4,0.11347319]
[1740280972232,3.62647,2757.5,2757.4,0.11347319]
[1740280972737,3.69151581,2757.5,2757.4,0.11347319]
[1740280973235,3.69151581,2757.5,2757.3,5.39]
[1740280974029,0.06504581,2757.5,2757.3,5.39]
[1740280974599,0.06504581,2757.5,2757.1,6.11703636]
[1740280974801,0.06504581,2757.5,2757.1,7.46212842]
[1740280975925,3.69152581,2757.5,2757.1,7.46212842]
[1740280976438,3.69152581,2757.5,2757.2,0.11347996]
[1740280977645,0.06504581,2757.5,2757.2,0.11347996]
[1740280977931,0.06504581,2757.5,2757.1,7.46212842]
[1740280978652,3.69152581,2757.5,2757.1,7.46212842]
[1740280980259,3.69152581,2757.5,2757.2,0.113479]
[1740280980438,0.06504581,2757.5,2757.2,0.113479]
[1740280981851,0.06504581,2757.5,2757.1,7.196272]
[1740280982730,0.06504581,2757.5,2757.1,10.823252]
[1740280984044,0.06504581,2757.5,2757.2,3.62682]
[1740280984250,0.06504581,2757.5,2757.2,4.76275195]
[1740280984628,0.06504581,2757.5,2757.4,4.3886]
[1740280984827,3.7518,2758.0,2757.4,4.3886]
[1740280985749,3.7518,2758.0,2757.5,0.11347546]
[1740280985920,0.7518,2758.0,2757.6,3.62623]
[1740280986122,3.7518,2758.2,2757.7,3.62609]
[1740280986340,3.7518,2758.2,2757.7,3.62621]
[1740280986543,0.05289493,2758.1,2757.7,3.62621]
[1740280987049,0.05289493,2758.1,2757.7,4.38811]
[1740280987250,3.05289493,2758.1,2757.7,0.762]
[1740280987454,3.05289493,2758.1,2757.7,2.1588416]
[1740280988246,3.05289493,2758.1,2757.7,2.88910728]
[1740280990041,3.05289493,2758.1,2757.8,0.33951461]
[1740280991756,3.05289493,2758.1,2757.7,1.49226568]
[1740280992658,3.05289493,2758.1,2757.8,0.262]
[1740280994648,0.05289493,2758.1,2757.8,0.84506162]
[1740280995154,0.05289493,2758.1,2757.8,4.47113162]
[1740280995357,0.05289493,2758.1,2757.8,0.84506162]
[1740280997228,8.26842345,2758.3,2757.8,0.84506162]
[1740280997764,0.06469146,2758.2,2757.8,0.84506162]
[1740280997959,0.06469146,2758.2,2757.9,0.59634573]
[1740280998124,6.62543,2758.3,2757.9,0.59634573]
[1740280998327,0.06468363,2758.1,2757.9,0.59634573]
[1740280998528,6.62543,2758.3,2757.9,0.59634573]
[1740280998863,0.7851,2758.8,2758.4,3.62518]
[1740280999067,0.7851,2758.8,2758.5,0.362518]
[1740280999357,0.7851,2758.8,2758.2,9.01548]
[1740280999549,0.7851,2758.8,2758.3,3.62531]
[1740280999752,0.7851,2758.8,2758.4,3.62522]
[1740280999931,0.7851,2758.8,2758.3,3.73879567]
[1740281000932,0.7851,2758.8,2758.4,3.62525]
[1740281001140,0.7851,2759.4,2758.7,1.48688404]
[1740281001344,2.42809345,2759.4,2758.7,5.37375404]
[1740281001546,2.42809345,2759.4,2758.8,3.62476]
[1740281002259,5.42809345,2759.4,2758.9,3.6246]
[1740281002460,5.42809345,2759.4,2759.0,0.36246]
[1740281002666,3.7851,2759.4,2759.0,0.36246]
[1740281003045,7.40914,2759.4,2759.0,0.36246]
[1740281004366,7.40914,2759.4,2758.7,5.37373404]
[1740281004663,7.40914,2759.4,2758.7,8.99854404]
[1740281004855,7.40914,2759.4,2758.7,5.37369404]
[1740281005067,0.06066944,2759.3,2758.7,5.37369404]
[1740281005363,0.06066944,2759.3,2758.9,3.62462]
[1740281005571,0.06066944,2759.3,2759.0,0.438942]
[1740281005932,3.0,2759.5,2759.0,0.438942]
[1740281006146,0.06063029,2759.2,2759.0,0.438942]
[1740281006346,3.0,2759.5,2759.0,0.438942]
[1740281006841,0.06073993,2759.4,2759.0,0.438942]
[1740281007073,4.17091453,2759.7,2759.1,3.62424]
[1740281007434,0.06036767,2759.6,2759.1,3.62424]
[1740281007835,0.06036767,2759.6,2759.2,3.6242]
[1740281009561,0.06036767,2759.6,2759.2,0.262]
[1740281010062,0.06036767,2759.6,2759.3,0.46247457]
[1740281010949,0.06036767,2759.6,2759.2,0.262]
[1740281011975,0.7851,2759.5,2759.1,1.00045572]
[1740281012357,0.06030503,2759.4,2759.1,1.00045572]
[1740281017383,0.06030503,2759.4,2759.1,4.62480572]
[1740281017557,0.06030503,2759.4,2759.2,3.62423]
[1740281017900,0.06030503,2759.4,2759.3,4.08656857]
[1740281018250,0.06030503,2759.4,2759.3,0.46246857]
[1740281018465,0.06030503,2759.4,2759.3,0.73874338]
[1740281021474,0.8207,2759.7,2759.3,0.73874338]
[1740281021982,0.8207,2759.7,2759.4,3.6239]
[1740281022370,0.8207,2759.7,2759.3,1.09647481]